[Event "Titled Tuesday Blitz November 14 Late 2023"]
[White "Eljanov, Pavel"]
[Black "Rorrer, Grayson"]
[WhiteFideId "14102951"]
[BlackFideId "30944996"]
[WhiteElo "2883"]
[BlackElo "2738"]
[Result "1-0"]
[Round "7"]
[TimeControl "180+1"]
[Date "2023.11.14"]
[WhiteClock "0:00:49"]
[BlackClock "0:00:17"]
[Board "10"]

1. d4 {[%clk 0:03:00]}  Nf6 {[%clk 0:02:59]} 2. Bf4 {[%clk 0:03:00]}  g6 {[%clk 0:02:55]} 3. Nf3 {[%clk 0:02:58]}  Bg7 {[%clk 0:02:55]} 4. e3 {[%clk 0:02:59]}  d6 {[%clk 0:02:55]} 5. h3 {[%clk 0:02:59]}  c5 {[%clk 0:02:56]} 6. c3 {[%clk 0:02:53]}  Qb6 {[%clk 0:02:54]} 7. Qb3 {[%clk 0:02:52]}  O-O {[%clk 0:02:51]} 8. Nbd2 {[%clk 0:02:49]}  cxd4 {[%clk 0:02:39]} 9. Qxb6 {[%clk 0:02:39]}  axb6 {[%clk 0:02:40]} 10. exd4 {[%clk 0:02:37]}  Nc6 {[%clk 0:02:39]} 11. Bh2 {[%clk 0:02:34]}  Be6 {[%clk 0:02:33]} 12. a3 {[%clk 0:02:31]}  Rfc8 {[%clk 0:02:27]} 13. Be2 {[%clk 0:02:25]}  Na5 {[%clk 0:02:20]} 14. O-O {[%clk 0:02:17]}  Bd5 {[%clk 0:02:16]} 15. Rfe1 {[%clk 0:02:15]}  Ne4 {[%clk 0:02:00]} 16. Nxe4 {[%clk 0:02:05]}  Bxe4 {[%clk 0:02:01]} 17. Bd1 {[%clk 0:01:57]}  Bxf3 {[%clk 0:01:55]} 18. Bxf3 {[%clk 0:01:57]}  Rc7 {[%clk 0:01:50]} 19. Bd5 {[%clk 0:01:38]}  Kf8 {[%clk 0:01:30]} 20. Re2 {[%clk 0:01:38]}  Nc4 {[%clk 0:01:18]} 21. Rae1 {[%clk 0:01:31]}  Bf6 {[%clk 0:01:19]} 22. Bf4 {[%clk 0:01:30]}  Kg7 {[%clk 0:01:12]} 23. Bxc4 {[%clk 0:01:20]}  Rxc4 {[%clk 0:01:08]} 24. Rxe7 {[%clk 0:01:21]}  Bxe7 {[%clk 0:01:09]} 25. Rxe7 {[%clk 0:01:20]}  d5 {[%clk 0:00:40]} 26. Rxb7 {[%clk 0:01:14]}  Rc6 {[%clk 0:00:40]} 27. Rd7 {[%clk 0:01:06]}  Ra5 {[%clk 0:00:32]} 28. Be5+ {[%clk 0:01:03]}  Kh6 {[%clk 0:00:26]} 29. Rxf7 {[%clk 0:01:01]}  Rb5 {[%clk 0:00:25]} 30. b4 {[%clk 0:01:00]}  Rxc3 {[%clk 0:00:25]} 31. Ra7 {[%clk 0:00:54]}  g5 {[%clk 0:00:22]} 32. Bd6 {[%clk 0:00:51]}  Kg6 {[%clk 0:00:19]} 33. a4 {[%clk 0:00:50]}  Rc2 {[%clk 0:00:17]} 34. axb5 {[%clk 0:00:49]} 1-0


[Site "https://www.chess.com"]

[Event "Titled Tuesday Blitz November 14 Late 2023"]
[White "Zakhartsov, Vladimir"]
[Black "Sydoryka, Vladyslav"]
[WhiteFideId "4145097"]
[BlackFideId "14145928"]
[WhiteElo "2854"]
[BlackElo "2692"]
[Result "1-0"]
[Round "7"]
[TimeControl "180+1"]
[Date "2023.11.14"]
[WhiteClock "0:00:37"]
[BlackClock "0:00:02"]
[Board "12"]

1. d4 {[%clk 0:03:00]}  Nf6 {[%clk 0:02:49]} 2. c4 {[%clk 0:03:00]}  e6 {[%clk 0:02:49]} 3. Nf3 {[%clk 0:03:00]}  d5 {[%clk 0:02:50]} 4. g3 {[%clk 0:03:00]}  Bb4+ {[%clk 0:02:50]} 5. Bd2 {[%clk 0:03:00]}  Be7 {[%clk 0:02:50]} 6. Bg2 {[%clk 0:03:00]}  O-O {[%clk 0:02:51]} 7. Bc3 {[%clk 0:03:00]}  dxc4 {[%clk 0:02:42]} 8. Ne5 {[%clk 0:02:59]}  Qd6 {[%clk 0:02:30]} 9. Nd2 {[%clk 0:02:56]}  Qa6 {[%clk 0:02:28]} 10. Ndxc4 {[%clk 0:02:54]}  Rd8 {[%clk 0:02:09]} 11. Qc2 {[%clk 0:02:38]}  Nd5 {[%clk 0:01:33]} 12. O-O {[%clk 0:02:35]}  f6 {[%clk 0:01:29]} 13. Be4 {[%clk 0:02:24]}  f5 {[%clk 0:00:58]} 14. Bd3 {[%clk 0:02:18]}  b5 {[%clk 0:00:57]} 15. Ne3 {[%clk 0:02:08]}  Bb7 {[%clk 0:00:54]} 16. a4 {[%clk 0:01:57]}  Nxe3 {[%clk 0:00:42]} 17. fxe3 {[%clk 0:01:58]}  Qd6 {[%clk 0:00:42]} 18. axb5 {[%clk 0:01:52]}  Nd7 {[%clk 0:00:38]} 19. Nxd7 {[%clk 0:01:11]}  Qxd7 {[%clk 0:00:37]} 20. e4 {[%clk 0:01:05]}  Bg5 {[%clk 0:00:37]} 21. Rf3 {[%clk 0:00:55]}  g6 {[%clk 0:00:33]} 22. h4 {[%clk 0:00:54]}  Bh6 {[%clk 0:00:31]} 23. Kh2 {[%clk 0:00:54]}  fxe4 {[%clk 0:00:20]} 24. Bxe4 {[%clk 0:00:53]}  Qxb5 {[%clk 0:00:21]} 25. Ra5 {[%clk 0:00:48]}  Bxe4 {[%clk 0:00:16]} 26. Qxe4 {[%clk 0:00:47]}  Qd7 {[%clk 0:00:16]} 27. h5 {[%clk 0:00:46]}  Qe8 {[%clk 0:00:04]} 28. Re5 {[%clk 0:00:42]}  Rd6 {[%clk 0:00:03]} 29. hxg6 {[%clk 0:00:40]}  Qxg6 {[%clk 0:00:02]} 30. Qxa8+ {[%clk 0:00:37]} 1-0


[Site "https://www.chess.com"]

[Event "Titled Tuesday Blitz November 14 Late 2023"]
[White "Andreikin, Dmitry"]
[Black "Ivic, Velimir"]
[WhiteFideId "4158814"]
[BlackFideId "950122"]
[WhiteElo "3117"]
[BlackElo "2817"]
[Result "1-0"]
[Round "7"]
[TimeControl "180+1"]
[Date "2023.11.14"]
[WhiteClock "0:00:05"]
[BlackClock "0:00:02"]
[Board "14"]

1. d4 {[%clk 0:03:00]}  d5 {[%clk 0:02:58]} 2. c4 {[%clk 0:03:01]}  c6 {[%clk 0:02:59]} 3. Nf3 {[%clk 0:03:00]}  Nf6 {[%clk 0:02:59]} 4. Qc2 {[%clk 0:03:01]}  g6 {[%clk 0:02:55]} 5. cxd5 {[%clk 0:03:00]}  cxd5 {[%clk 0:02:55]} 6. Bf4 {[%clk 0:03:00]}  Nc6 {[%clk 0:02:54]} 7. Nc3 {[%clk 0:03:00]}  Bg7 {[%clk 0:02:54]} 8. e3 {[%clk 0:03:00]}  O-O {[%clk 0:02:54]} 9. Be2 {[%clk 0:03:00]}  Bf5 {[%clk 0:02:53]} 10. Qb3 {[%clk 0:03:00]}  Na5 {[%clk 0:02:53]} 11. Qb4 {[%clk 0:03:00]}  Rc8 {[%clk 0:02:49]} 12. O-O {[%clk 0:02:59]}  Ne4 {[%clk 0:02:37]} 13. Rac1 {[%clk 0:02:52]}  Nxc3 {[%clk 0:02:36]} 14. Rxc3 {[%clk 0:02:52]}  Rxc3 {[%clk 0:02:36]} 15. Qxc3 {[%clk 0:02:53]}  Nc6 {[%clk 0:02:33]} 16. Qb3 {[%clk 0:02:43]}  Qd7 {[%clk 0:02:29]} 17. Rc1 {[%clk 0:02:41]}  Bg4 {[%clk 0:02:23]} 18. h3 {[%clk 0:02:29]}  Bxf3 {[%clk 0:02:23]} 19. Bxf3 {[%clk 0:02:30]}  e6 {[%clk 0:02:24]} 20. Be2 {[%clk 0:02:30]}  Rc8 {[%clk 0:02:24]} 21. Qb5 {[%clk 0:02:20]}  a6 {[%clk 0:02:08]} 22. Qa4 {[%clk 0:02:18]}  Bf8 {[%clk 0:01:33]} 23. Bf1 {[%clk 0:02:19]}  Bd6 {[%clk 0:01:32]} 24. Bxd6 {[%clk 0:02:18]}  Qxd6 {[%clk 0:01:32]} 25. b4 {[%clk 0:02:18]}  Rc7 {[%clk 0:01:20]} 26. Rc5 {[%clk 0:02:15]}  Kg7 {[%clk 0:01:02]} 27. a3 {[%clk 0:02:15]}  Nb8 {[%clk 0:00:55]} 28. Qe8 {[%clk 0:02:08]}  Nd7 {[%clk 0:00:33]} 29. Qd8 {[%clk 0:02:03]}  Rc6 {[%clk 0:00:33]} 30. Rxc6 {[%clk 0:00:55]}  Qxc6 {[%clk 0:00:34]} 31. Qe8 {[%clk 0:00:39]}  b5 {[%clk 0:00:32]} 32. g3 {[%clk 0:00:35]}  Qc7 {[%clk 0:00:28]} 33. Qe7 {[%clk 0:00:35]}  Qc6 {[%clk 0:00:28]} 34. Qe8 {[%clk 0:00:33]}  Qc7 {[%clk 0:00:21]} 35. Qa8 {[%clk 0:00:31]}  Nb8 {[%clk 0:00:20]} 36. e4 {[%clk 0:00:26]}  dxe4 {[%clk 0:00:18]} 37. Qxe4 {[%clk 0:00:27]}  Nd7 {[%clk 0:00:15]} 38. Qa8 {[%clk 0:00:21]}  Qd6 {[%clk 0:00:15]} 39. Bg2 {[%clk 0:00:15]}  Nf6 {[%clk 0:00:16]} 40. Bf3 {[%clk 0:00:13]}  h5 {[%clk 0:00:15]} 41. h4 {[%clk 0:00:13]}  Qxd4 {[%clk 0:00:10]} 42. Qxa6 {[%clk 0:00:13]}  Qd3 {[%clk 0:00:09]} 43. Bg2 {[%clk 0:00:07]}  Ng4 {[%clk 0:00:10]} 44. Qb6 {[%clk 0:00:06]}  Qxa3 {[%clk 0:00:09]} 45. Qxb5 {[%clk 0:00:05]}  e5 {[%clk 0:00:03]} 46. Qc5 {[%clk 0:00:05]}  f5 {[%clk 0:00:02]} 47. Qe7+ {[%clk 0:00:04]}  Kh6 {[%clk 0:00:03]} 48. Qf8+ {[%clk 0:00:04]}  Kh7 {[%clk 0:00:03]} 49. Bd5 {[%clk 0:00:04]}  Qc1+ {[%clk 0:00:01]} 50. Kg2 {[%clk 0:00:05]}  Qd2 {[%clk 0:00:01]} 51. Qg8+ {[%clk 0:00:04]}  Kh6 {[%clk 0:00:02]} 52. Qh8# {[%clk 0:00:05]} 1-0


[Site "https://www.chess.com"]

[Event "Titled Tuesday Blitz November 14 Late 2023"]
[White "Yoo, Christopher Woojin"]
[Black "Djordjevic, Vuk"]
[WhiteFideId "30909694"]
[BlackFideId "902098"]
[WhiteElo "3055"]
[BlackElo "2763"]
[Result "1/2-1/2"]
[Round "7"]
[TimeControl "180+1"]
[Date "2023.11.14"]
[WhiteClock "0:00:02"]
[BlackClock "0:00:03"]
[Board "15"]

1. d4 {[%clk 0:03:00]}  Nf6 {[%clk 0:02:59]} 2. c4 {[%clk 0:03:01]}  e6 {[%clk 0:02:59]} 3. Nf3 {[%clk 0:03:02]}  b6 {[%clk 0:02:59]} 4. g3 {[%clk 0:03:02]}  Ba6 {[%clk 0:02:59]} 5. Qb3 {[%clk 0:02:57]}  Nc6 {[%clk 0:02:55]} 6. Bd2 {[%clk 0:02:58]}  Be7 {[%clk 0:02:50]} 7. Bg2 {[%clk 0:02:58]}  O-O {[%clk 0:02:50]} 8. O-O {[%clk 0:02:58]}  d5 {[%clk 0:02:46]} 9. Qa4 {[%clk 0:02:44]}  Nb8 {[%clk 0:02:36]} 10. Ne5 {[%clk 0:02:34]}  c6 {[%clk 0:02:31]} 11. Nc3 {[%clk 0:02:31]}  Bb7 {[%clk 0:02:26]} 12. cxd5 {[%clk 0:02:29]}  cxd5 {[%clk 0:02:19]} 13. Rac1 {[%clk 0:02:22]}  Nfd7 {[%clk 0:02:19]} 14. Nxd7 {[%clk 0:02:21]}  Qxd7 {[%clk 0:02:18]} 15. Qxd7 {[%clk 0:02:18]}  Nxd7 {[%clk 0:02:19]} 16. Nb5 {[%clk 0:02:18]}  Rfc8 {[%clk 0:02:16]} 17. Bf4 {[%clk 0:02:15]}  Bd8 {[%clk 0:01:53]} 18. Nd6 {[%clk 0:02:10]}  Rxc1 {[%clk 0:01:53]} 19. Rxc1 {[%clk 0:02:10]}  Ba6 {[%clk 0:01:44]} 20. e4 {[%clk 0:02:10]}  Nf6 {[%clk 0:01:43]} 21. b4 {[%clk 0:02:08]}  Be7 {[%clk 0:01:22]} 22. e5 {[%clk 0:01:34]}  Bxd6 {[%clk 0:00:59]} 23. exd6 {[%clk 0:01:33]}  Rd8 {[%clk 0:00:57]} 24. Rc7 {[%clk 0:01:31]}  Rd7 {[%clk 0:00:57]} 25. Bf1 {[%clk 0:01:22]}  Rxc7 {[%clk 0:00:46]} 26. dxc7 {[%clk 0:01:23]}  Bb7 {[%clk 0:00:34]} 27. Bb5 {[%clk 0:01:18]}  a6 {[%clk 0:00:34]} 28. Bc6 {[%clk 0:01:15]}  Bc8 {[%clk 0:00:34]} 29. f3 {[%clk 0:01:13]}  Nd7 {[%clk 0:00:26]} 30. a4 {[%clk 0:01:09]}  f6 {[%clk 0:00:21]} 31. Bd6 {[%clk 0:01:08]}  Kf7 {[%clk 0:00:21]} 32. Kf2 {[%clk 0:01:08]}  Nf8 {[%clk 0:00:20]} 33. Ke3 {[%clk 0:01:07]}  Ng6 {[%clk 0:00:20]} 34. h4 {[%clk 0:01:07]}  Ne7 {[%clk 0:00:20]} 35. Bxe7 {[%clk 0:00:39]}  Kxe7 {[%clk 0:00:20]} 36. h5 {[%clk 0:00:39]}  Kd6 {[%clk 0:00:17]} 37. Be8 {[%clk 0:00:39]}  h6 {[%clk 0:00:05]} 38. a5 {[%clk 0:00:32]}  bxa5 {[%clk 0:00:04]} 39. bxa5 {[%clk 0:00:33]}  Kxc7 {[%clk 0:00:04]} 40. Ba4 {[%clk 0:00:29]}  Bd7 {[%clk 0:00:04]} 41. Bc2 {[%clk 0:00:28]}  Bb5 {[%clk 0:00:04]} 42. Kf4 {[%clk 0:00:25]}  Kc6 {[%clk 0:00:04]} 43. g4 {[%clk 0:00:24]}  Kd6 {[%clk 0:00:04]} 44. Ke3 {[%clk 0:00:24]}  e5 {[%clk 0:00:04]} 45. Bb3 {[%clk 0:00:23]}  Bd7 {[%clk 0:00:03]} 46. Bc2 {[%clk 0:00:22]}  e4 {[%clk 0:00:03]} 47. Bd1 {[%clk 0:00:18]}  exf3 {[%clk 0:00:03]} 48. Bxf3 {[%clk 0:00:19]}  f5 {[%clk 0:00:03]} 49. gxf5 {[%clk 0:00:16]}  Bxf5 {[%clk 0:00:04]} 50. Be2 {[%clk 0:00:16]}  Bc8 {[%clk 0:00:04]} 51. Kf4 {[%clk 0:00:17]}  Bb7 {[%clk 0:00:02]} 52. Kf5 {[%clk 0:00:17]}  Ke7 {[%clk 0:00:01]} 53. Ke5 {[%clk 0:00:18]}  Kd7 {[%clk 0:00:01]} 54. Bf3 {[%clk 0:00:17]}  Ke7 {[%clk 0:00:02]} 55. Bxd5 {[%clk 0:00:16]}  Bc8 {[%clk 0:00:02]} 56. Bf3 {[%clk 0:00:16]}  Bd7 {[%clk 0:00:01]} 57. d5 {[%clk 0:00:16]}  Bb5 {[%clk 0:00:02]} 58. d6+ {[%clk 0:00:16]}  Kd7 {[%clk 0:00:02]} 59. Be4 {[%clk 0:00:15]}  Be2 {[%clk 0:00:01]} 60. Bf5+ {[%clk 0:00:15]}  Kd8 {[%clk 0:00:01]} 61. Bg6 {[%clk 0:00:14]}  Kd7 {[%clk 0:00:01]} 62. Kd5 {[%clk 0:00:14]}  Bb5 {[%clk 0:00:01]} 63. Kc5 {[%clk 0:00:15]}  Be2 {[%clk 0:00:02]} 64. Bf7 {[%clk 0:00:13]}  Bd3 {[%clk 0:00:02]} 65. Kd5 {[%clk 0:00:09]}  Be2 {[%clk 0:00:02]} 66. Ke5 {[%clk 0:00:09]}  Kd8 {[%clk 0:00:02]} 67. Bg6 {[%clk 0:00:08]}  Kd7 {[%clk 0:00:02]} 68. Bf7 {[%clk 0:00:05]}  Kd8 {[%clk 0:00:03]} 69. Kf5 {[%clk 0:00:06]}  Kd7 {[%clk 0:00:03]} 70. Ke5 {[%clk 0:00:02]} 1/2-1/2


[Site "https://www.chess.com"]

[Event "Titled Tuesday Blitz November 14 Late 2023"]
[White "Alekseenko, Kirill"]
[Black "MKlose11"]
[WhiteFideId "4135539"]
[WhiteElo "2959"]
[BlackElo "2689"]
[Result "1-0"]
[Round "7"]
[TimeControl "180+1"]
[Date "2023.11.14"]
[WhiteClock "0:01:15"]
[BlackClock "0:00:15"]
[Board "17"]

1. e4 {[%clk 0:03:00]}  e6 {[%clk 0:02:57]} 2. d4 {[%clk 0:02:52]}  d5 {[%clk 0:02:58]} 3. Nd2 {[%clk 0:02:53]}  Be7 {[%clk 0:02:58]} 4. Bd3 {[%clk 0:02:51]}  c5 {[%clk 0:02:54]} 5. dxc5 {[%clk 0:02:51]}  Nf6 {[%clk 0:02:53]} 6. Qe2 {[%clk 0:02:44]}  Nc6 {[%clk 0:02:47]} 7. Ngf3 {[%clk 0:02:42]}  Nb4 {[%clk 0:02:43]} 8. e5 {[%clk 0:02:38]}  Nd7 {[%clk 0:02:43]} 9. O-O {[%clk 0:02:38]}  Nxd3 {[%clk 0:02:41]} 10. cxd3 {[%clk 0:02:38]}  Nxc5 {[%clk 0:02:41]} 11. Nd4 {[%clk 0:02:34]}  b6 {[%clk 0:02:31]} 12. Rd1 {[%clk 0:02:22]}  Ba6 {[%clk 0:02:31]} 13. Nf1 {[%clk 0:02:23]}  Rc8 {[%clk 0:02:30]} 14. Ng3 {[%clk 0:02:21]}  O-O {[%clk 0:02:27]} 15. Nh5 {[%clk 0:02:19]}  g6 {[%clk 0:02:04]} 16. Ng3 {[%clk 0:02:10]}  Bg5 {[%clk 0:02:00]} 17. Be3 {[%clk 0:01:55]}  Bxe3 {[%clk 0:01:58]} 18. Qxe3 {[%clk 0:01:56]}  Kg7 {[%clk 0:01:48]} 19. h3 {[%clk 0:01:56]}  Qh4 {[%clk 0:01:37]} 20. Rd2 {[%clk 0:01:53]}  Rc7 {[%clk 0:01:32]} 21. Rf1 {[%clk 0:01:48]}  Rfc8 {[%clk 0:01:30]} 22. f4 {[%clk 0:01:48]}  Kh8 {[%clk 0:01:18]} 23. Kh2 {[%clk 0:01:47]}  Rd8 {[%clk 0:01:04]} 24. Nh1 {[%clk 0:01:45]}  Ne4 {[%clk 0:00:58]} 25. Rdd1 {[%clk 0:01:39]}  Nc5 {[%clk 0:00:47]} 26. Nf2 {[%clk 0:01:38]}  h5 {[%clk 0:00:42]} 27. Nh1 {[%clk 0:01:33]}  Kg8 {[%clk 0:00:38]} 28. Ng3 {[%clk 0:01:33]}  Rdc8 {[%clk 0:00:28]} 29. Nge2 {[%clk 0:01:31]}  Rd8 {[%clk 0:00:27]} 30. Ng1 {[%clk 0:01:30]}  Na4 {[%clk 0:00:23]} 31. Ngf3 {[%clk 0:01:29]}  Qe7 {[%clk 0:00:23]} 32. Rd2 {[%clk 0:01:29]}  Rdc8 {[%clk 0:00:22]} 33. Rdf2 {[%clk 0:01:23]}  Nc5 {[%clk 0:00:21]} 34. Rd1 {[%clk 0:01:24]}  Nd7 {[%clk 0:00:20]} 35. Ng5 {[%clk 0:01:23]}  Nb8 {[%clk 0:00:20]} 36. g4 {[%clk 0:01:20]}  hxg4 {[%clk 0:00:19]} 37. hxg4 {[%clk 0:01:20]}  Kg7 {[%clk 0:00:19]} 38. f5 {[%clk 0:01:17]}  exf5 {[%clk 0:00:18]} 39. gxf5 {[%clk 0:01:16]}  Rh8+ {[%clk 0:00:19]} 40. Kg2 {[%clk 0:01:15]}  gxf5 {[%clk 0:00:15]} 41. Nxf5+ {[%clk 0:01:15]} 1-0


[Site "https://www.chess.com"]

[Event "Titled Tuesday Blitz November 14 Late 2023"]
[White "Chigaev, Maksim"]
[Black "Bjelobrk, Igor"]
[WhiteFideId "4108116"]
[BlackFideId "4300726"]
[WhiteElo "2931"]
[BlackElo "2679"]
[Result "1-0"]
[Round "7"]
[TimeControl "180+1"]
[Date "2023.11.14"]
[WhiteClock "0:00:23"]
[BlackClock "0:00:33"]
[Board "19"]

1. d4 {[%clk 0:03:00]}  e6 {[%clk 0:02:55]} 2. g3 {[%clk 0:03:00]}  c5 {[%clk 0:02:43]} 3. Nf3 {[%clk 0:02:57]}  b5 {[%clk 0:02:36]} 4. Bg2 {[%clk 0:02:56]}  Bb7 {[%clk 0:02:36]} 5. c3 {[%clk 0:02:57]}  Nf6 {[%clk 0:02:35]} 6. O-O {[%clk 0:02:57]}  Be7 {[%clk 0:02:30]} 7. Bg5 {[%clk 0:02:55]}  Na6 {[%clk 0:02:26]} 8. e3 {[%clk 0:02:44]}  O-O {[%clk 0:02:20]} 9. Nbd2 {[%clk 0:02:42]}  h6 {[%clk 0:02:10]} 10. Bxf6 {[%clk 0:02:41]}  Bxf6 {[%clk 0:02:11]} 11. a4 {[%clk 0:02:36]}  b4 {[%clk 0:02:07]} 12. a5 {[%clk 0:02:36]}  Rb8 {[%clk 0:02:05]} 13. Re1 {[%clk 0:02:30]}  d5 {[%clk 0:01:59]} 14. h4 {[%clk 0:02:26]}  Bc6 {[%clk 0:01:58]} 15. Qe2 {[%clk 0:02:13]}  Bb5 {[%clk 0:01:55]} 16. Qd1 {[%clk 0:02:12]}  bxc3 {[%clk 0:01:53]} 17. bxc3 {[%clk 0:02:11]}  cxd4 {[%clk 0:01:53]} 18. exd4 {[%clk 0:02:11]}  Qc7 {[%clk 0:01:52]} 19. Re3 {[%clk 0:02:10]}  Rfc8 {[%clk 0:01:51]} 20. Bf1 {[%clk 0:02:02]}  Bxf1 {[%clk 0:01:49]} 21. Qxf1 {[%clk 0:02:02]}  Qc6 {[%clk 0:01:43]} 22. g4 {[%clk 0:02:02]}  Nc7 {[%clk 0:01:38]} 23. g5 {[%clk 0:02:02]}  hxg5 {[%clk 0:01:38]} 24. hxg5 {[%clk 0:02:01]}  Be7 {[%clk 0:01:38]} 25. Ne5 {[%clk 0:01:54]}  Qb5 {[%clk 0:01:38]} 26. Qg2 {[%clk 0:01:41]}  g6 {[%clk 0:01:30]} 27. Qg4 {[%clk 0:00:43]}  Kg7 {[%clk 0:01:25]} 28. Rf3 {[%clk 0:00:41]}  Rf8 {[%clk 0:01:24]} 29. Qh4 {[%clk 0:00:35]}  Qe2 {[%clk 0:00:35]} 30. Qh6+ {[%clk 0:00:29]}  Kg8 {[%clk 0:00:33]} 31. Rh3 {[%clk 0:00:23]} 1-0


[Site "https://www.chess.com"]

[Event "Titled Tuesday Blitz November 14 Late 2023"]
[White "Sivakumar, Shaaketh"]
[Black "Kamsky, Gata"]
[WhiteFideId "30940176"]
[BlackFideId "2000024"]
[WhiteElo "2652"]
[BlackElo "2918"]
[Result "0-1"]
[Round "7"]
[TimeControl "180+1"]
[Date "2023.11.14"]
[WhiteClock "0:01:41"]
[BlackClock "0:01:12"]
[Board "20"]

1. Nf3 {[%clk 0:03:00]}  Nf6 {[%clk 0:02:52]} 2. g3 {[%clk 0:03:01]}  g6 {[%clk 0:02:52]} 3. Bg2 {[%clk 0:03:01]}  Bg7 {[%clk 0:02:52]} 4. O-O {[%clk 0:03:02]}  O-O {[%clk 0:02:52]} 5. c4 {[%clk 0:03:03]}  c6 {[%clk 0:02:51]} 6. d4 {[%clk 0:03:02]}  d5 {[%clk 0:02:50]} 7. b3 {[%clk 0:03:01]}  Bf5 {[%clk 0:02:47]} 8. Bb2 {[%clk 0:03:01]}  Ne4 {[%clk 0:02:46]} 9. Nbd2 {[%clk 0:02:59]}  Qa5 {[%clk 0:02:45]} 10. Qc1 {[%clk 0:02:52]}  Nd7 {[%clk 0:02:42]} 11. Rd1 {[%clk 0:02:51]}  Nxd2 {[%clk 0:02:37]} 12. Qxd2 {[%clk 0:02:50]}  Qxd2 {[%clk 0:02:35]} 13. Nxd2 {[%clk 0:02:51]}  Nf6 {[%clk 0:02:21]} 14. f3 {[%clk 0:02:51]}  Rfd8 {[%clk 0:02:14]} 15. h3 {[%clk 0:02:50]}  Ne8 {[%clk 0:02:05]} 16. e4 {[%clk 0:02:47]}  dxe4 {[%clk 0:01:45]} 17. fxe4 {[%clk 0:02:48]}  Be6 {[%clk 0:01:45]} 18. e5 {[%clk 0:02:43]}  f6 {[%clk 0:01:45]} 19. exf6 {[%clk 0:02:28]}  exf6 {[%clk 0:01:43]} 20. Ne4 {[%clk 0:02:27]}  Rab8 {[%clk 0:01:38]} 21. Nc5 {[%clk 0:02:26]}  Bf7 {[%clk 0:01:37]} 22. Rd2 {[%clk 0:02:22]}  f5 {[%clk 0:01:36]} 23. Rad1 {[%clk 0:02:22]}  Nc7 {[%clk 0:01:27]} 24. Nxb7 {[%clk 0:02:00]}  Rxb7 {[%clk 0:01:26]} 25. Bxc6 {[%clk 0:02:00]}  Rb6 {[%clk 0:01:20]} 26. d5 {[%clk 0:01:57]}  Bxb2 {[%clk 0:01:19]} 27. c5 {[%clk 0:01:55]}  Rxc6 {[%clk 0:01:11]} 28. dxc6 {[%clk 0:01:54]}  Rxd2 {[%clk 0:01:12]} 29. Rxd2 {[%clk 0:01:41]}  Ba3 {[%clk 0:01:12]} 0-1


[Site "https://www.chess.com"]

[Event "Titled Tuesday Blitz November 14 Late 2023"]
[White "Ambartsumova, Karina"]
[Black "Tactrics"]
[WhiteFideId "4166299"]
[WhiteElo "2638"]
[BlackElo "2862"]
[Result "1-0"]
[Round "7"]
[TimeControl "180+1"]
[Date "2023.11.14"]
[WhiteClock "0:00:18"]
[BlackClock "0:00:18"]
[Board "21"]

1. d4 {[%clk 0:03:00]}  e6 {[%clk 0:02:59]} 2. c4 {[%clk 0:03:00]}  Nf6 {[%clk 0:03:00]} 3. Nc3 {[%clk 0:03:00]}  Bb4 {[%clk 0:03:00]} 4. Qc2 {[%clk 0:03:00]}  Nc6 {[%clk 0:02:59]} 5. Nf3 {[%clk 0:02:59]}  d6 {[%clk 0:02:59]} 6. a3 {[%clk 0:02:56]}  Bxc3+ {[%clk 0:03:00]} 7. Qxc3 {[%clk 0:02:57]}  O-O {[%clk 0:03:00]} 8. g3 {[%clk 0:02:57]}  Qe7 {[%clk 0:03:00]} 9. Bg2 {[%clk 0:02:57]}  e5 {[%clk 0:03:00]} 10. O-O {[%clk 0:02:50]}  Bg4 {[%clk 0:03:00]} 11. d5 {[%clk 0:02:39]}  Bxf3 {[%clk 0:02:45]} 12. Qxf3 {[%clk 0:02:33]}  Nd4 {[%clk 0:02:45]} 13. Qd3 {[%clk 0:02:33]}  Qd7 {[%clk 0:02:31]} 14. Bg5 {[%clk 0:02:10]}  Qf5 {[%clk 0:02:19]} 15. Qxf5 {[%clk 0:02:07]}  Nxf5 {[%clk 0:02:20]} 16. Bxf6 {[%clk 0:02:07]}  gxf6 {[%clk 0:02:16]} 17. e3 {[%clk 0:02:07]}  a5 {[%clk 0:02:14]} 18. b4 {[%clk 0:02:02]}  Ra7 {[%clk 0:02:11]} 19. h4 {[%clk 0:01:37]}  Rfa8 {[%clk 0:02:06]} 20. b5 {[%clk 0:01:37]}  Ne7 {[%clk 0:02:00]} 21. Rac1 {[%clk 0:01:28]}  b6 {[%clk 0:01:59]} 22. Bh3 {[%clk 0:01:25]}  Kg7 {[%clk 0:01:57]} 23. f4 {[%clk 0:01:22]}  Ng6 {[%clk 0:01:55]} 24. Rc2 {[%clk 0:01:17]}  Rg8 {[%clk 0:01:52]} 25. h5 {[%clk 0:01:03]}  Ne7 {[%clk 0:01:43]} 26. fxe5 {[%clk 0:01:04]}  fxe5 {[%clk 0:01:41]} 27. Rcf2 {[%clk 0:01:04]}  Rf8 {[%clk 0:01:42]} 28. h6+ {[%clk 0:00:49]}  Kxh6 {[%clk 0:01:23]} 29. Rxf7 {[%clk 0:00:49]}  Rxf7 {[%clk 0:01:24]} 30. Rxf7 {[%clk 0:00:50]}  Ng6 {[%clk 0:01:23]} 31. Kg2 {[%clk 0:00:45]}  e4 {[%clk 0:01:14]} 32. Bf5 {[%clk 0:00:45]}  Ne5 {[%clk 0:01:12]} 33. Rxh7+ {[%clk 0:00:44]}  Kg5 {[%clk 0:01:13]} 34. Bxe4 {[%clk 0:00:45]}  Nxc4 {[%clk 0:01:13]} 35. a4 {[%clk 0:00:42]}  Nxe3+ {[%clk 0:01:06]} 36. Kf3 {[%clk 0:00:41]}  Nc4 {[%clk 0:01:07]} 37. Bc2 {[%clk 0:00:28]}  Ne5+ {[%clk 0:00:56]} 38. Ke4 {[%clk 0:00:26]}  Kf6 {[%clk 0:00:52]} 39. Kf4 {[%clk 0:00:23]}  Nf7 {[%clk 0:00:50]} 40. g4 {[%clk 0:00:20]}  Ra8 {[%clk 0:00:30]} 41. g5+ {[%clk 0:00:20]}  Nxg5 {[%clk 0:00:25]} 42. Rh6+ {[%clk 0:00:20]}  Kg7 {[%clk 0:00:25]} 43. Kxg5 {[%clk 0:00:20]}  Re8 {[%clk 0:00:23]} 44. Bf5 {[%clk 0:00:19]}  Re5 {[%clk 0:00:21]} 45. Rh7+ {[%clk 0:00:19]}  Kf8 {[%clk 0:00:19]} 46. Kf6 {[%clk 0:00:18]}  Rxd5 {[%clk 0:00:18]} 47. Rh8# {[%clk 0:00:18]} 1-0


[Site "https://www.chess.com"]